fUST/lending_fUST_20240225
["ID","MTS","AMOUNT","RATE_DAILY","PERIOD"]
[315113455,1708842633156,-500.0,0.00019178,2]
[315113456,1708842633164,-500.0,0.00019178,2]
[315113457,1708842633174,-500.0,0.00019178,2]
[315113458,1708842633183,-500.26558795,0.00019178,2]
[315113459,1708842633193,-553.59015756,0.00019178,2]
[315113460,1708842633202,-500.0,0.00019178,2]
[315113461,1708842633211,-500.63657076,0.00019178,2]
[315113462,1708842633220,-500.61638609,0.00019178,2]
[315113463,1708842633230,-500.37739963,0.00019178,2]
[315113464,1708842633239,-500.0,0.00019178,2]
[315113465,1708842633248,-500.38226634,0.00019178,2]
[315113466,1708842633258,-500.0,0.00019178,2]
[315113467,1708842633267,-500.595232,0.00019178,2]
[315113468,1708842633276,-501.14830234,0.00019178,2]
[315113469,1708842633285,-500.0,0.00019178,2]
[315113470,1708842633295,-500.65277545,0.00019178,2]
[315113471,1708842633304,-500.0,0.00019178,2]
[315113472,1708842633314,-500.23237921,0.00019178,2]
[315113473,1708842633324,-500.0,0.00019178,2]
[315113474,1708842633333,-1671.45,0.00019178,2]
[315113475,1708842633343,-500.0,0.00019178,2]
[315113476,1708842633352,-500.80767734,0.00019178,2]
[315113477,1708842633362,-227.67643892,0.00019178,2]
[315113478,1708842633372,-851.02,0.00019178,2]
[315113479,1708842633381,-500.0,0.00019178,2]
[315113480,1708842633390,-500.0,0.00019178,2]
[315113481,1708842633400,-500.09330218,0.00019178,2]
[315113482,1708842633409,-1547.62,0.00019178,2]
[315113483,1708842633418,-500.0,0.00019178,2]
[315113484,1708842633428,-500.0,0.00019178,2]
[315113485,1708842633438,-500.0,0.00019178,2]
[315113486,1708842633447,-501.59373111,0.00019178,2]
[315113487,1708842633457,-500.0,0.00019178,2]
[315113488,1708842633466,-500.0,0.00019178,2]
[315113489,1708842633475,-984.61,0.00019178,2]
[315113490,1708842633484,-1575.29,0.00019178,2]
[315113491,1708842633493,-500.0,0.00019178,2]
[315113492,1708842633502,-501.00933044,0.00019178,2]
[315113493,1708842633511,-951.86,0.00019178,2]
[315113494,1708842633520,-1108.64,0.00019178,2]
[315113495,1708842633530,-500.0,0.00019178,2]
[315113496,1708842633539,-1321.94,0.00019178,2]
[315113497,1708842633548,-1633.22,0.00019178,2]
[315113498,1708842633558,-500.0,0.00019178,2]
[315113499,1708842633569,-1206.07,0.00019178,2]
[315113500,1708842633578,-500.0,0.00019178,2]
[315113501,1708842633587,-500.0,0.00019178,2]
[315113502,1708842633596,-500.0,0.00019178,2]
[315113503,1708842633606,-500.0,0.00019178,2]
[315113504,1708842633615,-500.0,0.00019178,2]
[315113505,1708842633624,-500.0,0.00019178,2]
[315113506,1708842633633,-8801.12,0.00019178,2]
[315113507,1708842633642,-500.0,0.00019178,2]
[315113508,1708842633652,-1720.21,0.00019178,2]
[315113509,1708842633661,-288.05606568,0.00019178,2]
[315113510,1708842633671,-1944.57,0.00019178,2]
[315113511,1708842633680,-500.0,0.00019178,2]
[315113512,1708842633689,-500.0,0.00019178,2]
[315113513,1708842633698,-500.0,0.00019178,2]
[315113514,1708842633706,-500.0,0.00019178,2]
[315113515,1708842633715,-502.22775455,0.00019178,2]
[315113516,1708842633725,-500.0,0.00019178,2]
[315113517,1708842633733,-500.10653902,0.00019178,2]
[315113518,1708842633742,-777.12419353,0.00019178,2]
[315113538,1708842638548,-407.15580647,0.00019178,2]
[315113541,1708842638558,-500.49826834,0.00019178,2]
[315113543,1708842638569,-617.49537402,0.00019178,2]
[315113544,1708842638578,-500.0,0.00019178,2]
[315113546,1708842638587,-500.0,0.00019178,2]
[315113548,1708842638595,-10919.63,0.00019178,2]
[315113550,1708842638605,-502.59334192,0.00019178,2]
[315113552,1708842638614,-500.0,0.00019178,2]
[315113554,1708842638623,-500.0,0.00019178,2]
[315113556,1708842638633,-500.0,0.00019178,2]
[315113557,1708842638642,-718.19,0.00019178,2]
[315113558,1708842638651,-543.41,0.00019178,2]
[315113559,1708842638660,-500.0,0.00019178,2]
[315113560,1708842638669,-500.0,0.00019178,2]
[315113561,1708842638678,-500.0,0.00019178,2]
[315113562,1708842638687,-500.0,0.00019178,2]
[315113563,1708842638696,-6251.27,0.00019178,2]
[315113564,1708842638705,-500.0,0.00019178,2]
[315113565,1708842638714,-500.0,0.00019178,2]
[315113566,1708842638723,-500.0,0.00019178,2]
[315113567,1708842638732,-500.0,0.00019178,2]
[315113568,1708842638741,-514.01,0.00019178,2]
[315113569,1708842638750,-500.0,0.00019178,2]
[315113570,1708842638759,-716.08,0.00019178,2]
[315113571,1708842638768,-2652.32,0.00019178,2]
[315113572,1708842638777,-297.1373613,0.00019178,2]
[315113573,1708842638786,-248.03889364,0.00019178,2]
[315113574,1708842638795,-868.85,0.00019178,2]
[315113575,1708842638803,-500.0,0.00019178,2]
[315113576,1708842638812,-201.73137709,0.00019178,2]
[315113577,1708842638823,-500.0,0.00019178,2]
[315113578,1708842638832,-1557.26,0.00019178,2]
[315113579,1708842638841,-3756.32,0.00019178,2]
[315113580,1708842638851,-500.0,0.00019178,2]
[315113581,1708842638860,-500.0,0.00019178,2]
[315113582,1708842638870,-5731.85,0.00019178,2]
[315113583,1708842638879,-521.99192232,0.00019178,2]
[315113584,1708842638889,-500.0,0.00019178,2]
[315113585,1708842638898,-760.39,0.00019178,2]
[315113586,1708842638907,-400.04704664,0.00019178,2]
[315113587,1708842638916,-181.39103,0.00019178,2]
[315113588,1708842638925,-174.569771,0.00019178,2]
[315113589,1708842638934,-166.666666,0.00019178,2]
[315113590,1708842638942,-500.0,0.00019232,2]
[315113591,1708842638951,-500.0,0.00019287,2]
[315113592,1708842638960,-271.12998174,0.00019342,2]
[315113593,1708842638968,-193.14192034,0.00019352,2]
[315113594,1708842638977,-151.0,0.0001945,2]
[315113595,1708842638986,-233.69715,0.0001945,2]
[315113596,1708842638995,-154.564481,0.00019451,2]
[315113597,1708842639004,-500.0,0.00019451,2]
[315113598,1708842639013,-401.57193576,0.00019451,2]
[315113599,1708842639022,-569.691597,0.00019451,2]
[315113600,1708842639032,-569.691597,0.00019451,2]
[315113601,1708842639041,-569.691597,0.00019451,2]
[315113602,1708842639050,-569.691597,0.00019451,2]
[315113603,1708842639059,-306.407015,0.00019451,2]
[315113604,1708842639069,-306.407015,0.00019451,2]
[315113605,1708842639078,-306.407015,0.00019451,2]
[315113606,1708842639087,-306.407015,0.00019451,2]
[315113607,1708842639096,-151.0,0.00019451,2]
[315113608,1708842639105,-151.0,0.00019451,2]
[315113609,1708842639114,-500.0,0.00019451,2]
[315113610,1708842639123,-500.0,0.00019451,2]
[315113611,1708842639133,-500.0,0.00019451,2]
[315113612,1708842639143,-500.0,0.00019451,2]
[315113613,1708842639262,-483.35573901,0.00019451,2]
[315113614,1708842639272,-500.0,0.00019451,2]
[315113615,1708842639281,-500.0,0.00019451,2]
[315113616,1708842639290,-500.0,0.00019451,2]
[315113617,1708842639299,-500.0,0.00019451,2]
[315113618,1708842639308,-500.0,0.00019451,2]
[315113619,1708842639317,-500.0,0.00019451,2]
[315113620,1708842639327,-500.0,0.00019451,2]
[315113621,1708842639336,-500.0,0.00019451,2]
[315113622,1708842639346,-500.0,0.00019451,2]
[315113623,1708842639355,-500.0,0.00019451,2]
[315113624,1708842639364,-247.14513548,0.00019451,2]
[315113625,1708842639374,-500.0,0.00019451,2]
[315113626,1708842639383,-500.0,0.00019451,2]
[315113627,1708842639393,-500.0,0.00019451,2]
[315113628,1708842639403,-500.0,0.00019451,2]
[315113629,1708842639412,-500.0,0.00019451,2]
[315113630,1708842639421,-500.0,0.00019451,2]
[315113631,1708842639430,-525.97405592,0.00019451,2]
[315113632,1708842639439,-500.0,0.00019451,2]
[315113633,1708842639449,-500.0,0.00019451,2]
[315113634,1708842639458,-500.0,0.00019451,2]
[315113635,1708842639467,-500.0,0.00019451,2]
[315113636,1708842639476,-500.0,0.00019451,2]
[315113637,1708842639485,-500.0,0.00019451,2]
[315113638,1708842639494,-538.08876173,0.00019451,2]
[315113639,1708842639503,-500.0,0.00019451,2]
[315113640,1708842639512,-500.0,0.00019451,2]
[315113641,1708842639521,-500.0,0.00019451,2]
[315113642,1708842639532,-500.0,0.00019451,2]
[315113643,1708842639541,-500.0,0.00019451,2]
[315113644,1708842639550,-500.0,0.00019451,2]
[315113645,1708842639559,-500.0,0.00019451,2]
[315113646,1708842639568,-500.0,0.00019451,2]
[315113647,1708842639578,-500.0,0.00019451,2]
[315113648,1708842639587,-500.0,0.00019451,2]
[315113649,1708842639596,-500.0,0.00019451,2]
[315113650,1708842639605,-500.0,0.00019451,2]
[315113651,1708842639615,-500.0,0.00019451,2]
[315113652,1708842639624,-500.0,0.00019451,2]
[315113653,1708842639633,-500.0,0.00019451,2]
[315113654,1708842639642,-500.0,0.00019451,2]
[315113655,1708842639652,-500.0,0.00019451,2]
[315113656,1708842639661,-500.0,0.00019451,2]
[315113657,1708842639670,-500.0,0.00019451,2]
[315113658,1708842639679,-500.0,0.00019451,2]
[315113659,1708842639688,-500.0,0.00019451,2]
[315113660,1708842639698,-500.0,0.00019451,2]
[315113661,1708842639706,-500.0,0.00019451,2]
[315113662,1708842639716,-168.44219927,0.00019451,2]
[315113663,1708842639725,-500.0,0.00019451,2]
[315113664,1708842639734,-500.0,0.00019451,2]
[315113665,1708842639742,-500.0,0.00019451,2]
[315113666,1708842639751,-500.0,0.00019451,2]
[315113667,1708842639760,-500.0,0.00019451,2]
[315113668,1708842639769,-500.0,0.00019451,2]
[315113669,1708842639778,-500.0,0.00019451,2]
[315113670,1708842639787,-500.0,0.00019451,2]
[315113671,1708842639796,-500.0,0.00019451,2]
[315113672,1708842639805,-500.0,0.00019451,2]
[315113673,1708842639814,-500.0,0.00019451,2]
[315113674,1708842639824,-500.0,0.00019451,2]
[315113675,1708842639833,-298.04525722,0.00019451,2]
[315113676,1708842639843,-500.0,0.00019451,2]
[315113677,1708842639852,-500.0,0.00019451,2]
[315113678,1708842639862,-500.0,0.00019451,2]
[315113679,1708842639871,-500.0,0.00019451,2]
[315113680,1708842639880,-500.0,0.00019451,2]
[315113681,1708842639889,-500.0,0.00019451,2]
[315113682,1708842639898,-500.0,0.00019451,2]
[315113683,1708842639908,-500.0,0.00019451,2]
[315113684,1708842639917,-500.0,0.00019451,2]
[315113685,1708842639927,-500.0,0.00019451,2]
[315113686,1708842639936,-500.0,0.00019451,2]
[315113687,1708842639945,-500.0,0.00019451,2]
[315113688,1708842639954,-500.0,0.00019451,2]
[315113689,1708842639964,-500.0,0.00019451,2]
[315113690,1708842639973,-500.0,0.00019451,2]
[315113691,1708842639982,-500.0,0.00019451,2]
[315113692,1708842639990,-500.0,0.00019451,2]
[315113693,1708842639999,-500.0,0.00019451,2]
[315113694,1708842640009,-500.0,0.00019451,2]
[315113695,1708842640018,-500.0,0.00019451,2]
[315113696,1708842640027,-500.0,0.00019451,2]
[315113697,1708842640036,-500.0,0.00019451,2]
[315113698,1708842640045,-500.0,0.00019451,2]
[315113699,1708842640055,-500.0,0.00019451,2]
[315113700,1708842640064,-500.0,0.00019451,2]
[315113701,1708842640073,-500.0,0.00019451,2]
[315113702,1708842640082,-500.0,0.00019451,2]
[315113703,1708842640091,-493.38994424,0.00019451,2]
[315113704,1708842640100,-629.179444,0.00019451,2]
[315113705,1708842640109,-629.179444,0.00019451,2]
[315113706,1708842640118,-629.179444,0.00019451,2]
[315113707,1708842640127,-629.179444,0.00019451,2]
[315113708,1708842640136,-500.0,0.00019451,2]
[315113709,1708842640145,-185.38246659,0.00019451,2]
[315113710,1708842640158,-500.0,0.00019451,2]
[315113711,1708842640167,-500.0,0.00019451,2]
[315113712,1708842640176,-500.0,0.00019451,2]
[315113713,1708842640185,-500.0,0.00019451,2]
[315113714,1708842640194,-500.0,0.00019452,2]
[315113715,1708842640203,-330.03326192,0.00019452,2]
[315113716,1708842640212,-500.0,0.00019452,2]
[315113717,1708842640221,-593.65,0.00019452,2]
[315113718,1708842640230,-500.0,0.00019452,2]
[315113719,1708842640240,-500.0,0.00019452,2]
[315113720,1708842640250,-500.0,0.00019452,2]
[315113721,1708842640259,-500.0,0.00019452,2]
[315113722,1708842640269,-893.57,0.00019452,2]
[315113723,1708842640277,-508.47,0.00019452,2]
[315113724,1708842640286,-500.0,0.00019452,2]
[315113725,1708842640296,-165.98,0.00019452,2]
[315113726,1708842640304,-500.0,0.00019452,2]
[315113727,1708842640314,-1671.45,0.00019452,2]
[315113728,1708842640323,-851.02,0.00019452,2]
[315113729,1708842640332,-1547.62,0.00019452,2]
[315113730,1708842640341,-500.0,0.00019452,2]
[315113731,1708842640350,-500.0,0.00019452,2]
[315113732,1708842640359,-627.19,0.00019452,2]
[315113733,1708842640368,-569.691597,0.00019452,2]
[315113734,1708842640376,-501.76768316,0.00019452,2]
[315113735,1708842640384,-569.691597,0.00019452,2]
[315113736,1708842640393,-569.691597,0.00019452,2]
[315113737,1708842640402,-569.691597,0.00019452,2]
[315113738,1708842640411,-569.691597,0.00019452,2]
[315113739,1708842640429,-569.691597,0.00019452,2]
[315113740,1708842640440,-306.407015,0.00019452,2]
[315113741,1708842640450,-306.407015,0.00019452,2]
[315113742,1708842640459,-306.407015,0.00019452,2]
[315113743,1708842640469,-306.407015,0.00019452,2]
[315113744,1708842640478,-306.407015,0.00019452,2]
[315113745,1708842640487,-306.407015,0.00019452,2]
[315113746,1708842640497,-500.0,0.00019452,2]
[315113747,1708842640506,-984.61,0.00019452,2]
[315113748,1708842640516,-1575.29,0.00019452,2]
[315113749,1708842640525,-151.0,0.00019452,2]
[315113750,1708842640535,-151.0,0.00019452,2]
[315113751,1708842640545,-151.0,0.00019452,2]
[315113752,1708842640555,-502.33123952,0.00019452,2]
[315113753,1708842640565,-951.86,0.00019452,2]
[315113754,1708842640574,-1108.64,0.00019452,2]
[315113755,1708842640583,-1321.94,0.00019452,2]
[315113756,1708842640593,-1633.22,0.00019452,2]
[315113757,1708842640603,-1206.07,0.00019452,2]
[315113758,1708842640612,-209.38186014,0.00019452,2]
[315113759,1708842640622,-500.0,0.00019452,2]
[315113760,1708842640633,-500.0,0.00019452,2]
[315113761,1708842640642,-8801.12,0.00019452,2]
[315113762,1708842640652,-500.0,0.00019452,2]
[315113763,1708842640662,-1720.21,0.00019452,2]
[315113764,1708842640672,-1944.57,0.00019452,2]
[315113765,1708842640682,-500.0,0.00019452,2]
[315113766,1708842640691,-500.0,0.00019452,2]
[315113767,1708842640700,-1184.28,0.00019452,2]
[315113768,1708842640710,-500.0,0.00019452,2]
[315113769,1708842640719,-10919.63,0.00019452,2]
[315113770,1708842640728,-500.0,0.00019452,2]
[315113772,1708842640738,-500.0,0.00019452,2]
[315113773,1708842640747,-718.19,0.00019452,2]
[315113774,1708842640757,-543.41,0.00019452,2]
[315113775,1708842640766,-500.0,0.00019452,2]
[315113776,1708842640776,-536.09326268,0.00019452,2]
[315113777,1708842640785,-6251.27,0.00019452,2]
[315113778,1708842640794,-500.0,0.00019452,2]
[315113779,1708842640804,-500.0,0.00019452,2]
[315113780,1708842640813,-500.0,0.00019452,2]
[315113781,1708842640823,-629.179444,0.00019452,2]
[315113782,1708842640832,-500.0,0.00019452,2]
[315113783,1708842640842,-629.179444,0.00019452,2]
[315113784,1708842640851,-629.179444,0.00019452,2]
[315113785,1708842640860,-514.01,0.00019452,2]
[315113786,1708842640869,-629.179444,0.00019452,2]
[315113787,1708842640879,-629.179444,0.00019452,2]
[315113788,1708842640889,-629.179444,0.00019452,2]
[315113789,1708842640898,-716.08,0.00019452,2]
[315113790,1708842640908,-2652.32,0.00019452,2]
[315113791,1708842640917,-868.85,0.00019452,2]
[315113792,1708842640926,-500.0,0.00019452,2]
[315113793,1708842640936,-1557.26,0.00019452,2]
[315113794,1708842640945,-3756.32,0.00019452,2]
[315113795,1708842640955,-500.0,0.00019452,2]
[315113796,1708842640965,-5731.85,0.00019452,2]
[315113797,1708842640974,-500.0,0.00019452,2]
[315113798,1708842640984,-760.39,0.00019452,2]
[315113799,1708842640993,-96965.11513336,0.00019453,2]
[315113800,1708842641003,-569.691597,0.00019453,2]
[315113801,1708842641013,-569.691597,0.00019453,2]
[315113802,1708842641023,-306.407015,0.00019453,2]
[315113803,1708842641032,-306.407015,0.00019453,2]
[315113804,1708842641042,-151.0,0.00019453,2]
[315113805,1708842641051,-629.179444,0.00019453,2]
[315113806,1708842641061,-629.179444,0.00019453,2]
[315113807,1708842641072,-240.2863309,0.000195,2]
[315113808,1708842641081,-200.5569553,0.000195,2]
[315113809,1708842641091,-153.0,0.000195,2]
[315113810,1708842641101,-153.0,0.000195,2]
[315113811,1708842641111,-153.0,0.000195,2]
[315113812,1708842641120,-2695.93674228,0.00019527,2]
[315113813,1708842641131,-300.0,0.0001959,2]
[315113814,1708842641141,-569.691597,0.00019626,2]
[315113815,1708842641154,-569.691597,0.00019626,2]
[315113816,1708842641164,-306.407015,0.00019626,2]
[315113817,1708842641174,-306.407015,0.00019626,2]
[315113818,1708842641183,-151.0,0.00019626,2]
[315113819,1708842641194,-629.179444,0.00019626,2]
[315113820,1708842641204,-629.179444,0.00019626,2]
[315113821,1708842641213,-276000.0,0.00019626,2]
[315113822,1708842641223,-166.666666,0.00019627,2]
[315113823,1708842641233,-1000.0,0.00019652,2]
[315113824,1708842641242,-1000.0,0.00019694,2]
[315113825,1708842641251,-500.0,0.00019726,2]
[315113826,1708842641261,-500.0,0.00019726,2]
[315113827,1708842641270,-593.65,0.00019726,2]
[315113828,1708842641279,-500.0,0.00019726,2]
[315113829,1708842641288,-500.0,0.00019726,2]
[315113830,1708842641298,-500.0,0.00019726,2]
[315113831,1708842641307,-893.57,0.00019726,2]
[315113832,1708842641316,-508.47,0.00019726,2]
[315113833,1708842641326,-500.0,0.00019726,2]
[315113834,1708842641335,-500.0,0.00019726,2]
[315113835,1708842641344,-1671.45,0.00019726,2]
[315113836,1708842641354,-851.02,0.00019726,2]
[315113837,1708842641362,-1547.62,0.00019726,2]
[315113838,1708842641370,-500.0,0.00019726,2]
[315113839,1708842641378,-500.0,0.00019726,2]
[315113840,1708842641386,-569.691597,0.00019726,2]
[315113841,1708842641395,-569.691597,0.00019726,2]
[315113842,1708842641403,-569.691597,0.00019726,2]
[315113843,1708842641412,-306.407015,0.00019726,2]
[315113844,1708842641421,-306.407015,0.00019726,2]
[315113845,1708842641430,-569.691597,0.00019726,2]
[315113846,1708842641440,-500.0,0.00019726,2]
[315113847,1708842641449,-984.61,0.00019726,2]
[315113848,1708842641458,-306.407015,0.00019726,2]
[315113849,1708842641467,-306.407015,0.00019726,2]
[315113850,1708842641476,-1575.29,0.00019726,2]
[315113851,1708842641486,-151.487299,0.00019726,2]
[315113852,1708842641495,-951.86,0.00019726,2]
[315113853,1708842641504,-1108.64,0.00019726,2]
[315113854,1708842641514,-1321.94,0.00019726,2]
[315113855,1708842641524,-1633.22,0.00019726,2]
[315113856,1708842641533,-1206.07,0.00019726,2]
[315113857,1708842641543,-500.0,0.00019726,2]
[315113858,1708842641552,-500.0,0.00019726,2]
[315113859,1708842641562,-8801.12,0.00019726,2]
[315113861,1708842641572,-500.0,0.00019726,2]
[315113863,1708842641581,-1720.21,0.00019726,2]
[315113864,1708842641591,-1944.57,0.00019726,2]
[315113866,1708842641601,-500.0,0.00019726,2]
[315113868,1708842641610,-500.0,0.00019726,2]
[315113869,1708842641620,-1184.28,0.00019726,2]
[315113870,1708842641629,-500.0,0.00019726,2]
[315113871,1708842641638,-10919.63,0.00019726,2]
[315113872,1708842641648,-500.0,0.00019726,2]
[315113874,1708842641657,-500.0,0.00019726,2]
[315113876,1708842641667,-718.19,0.00019726,2]
[315113878,1708842641676,-543.41,0.00019726,2]
[315113880,1708842641685,-500.0,0.00019726,2]
[315113881,1708842641694,-6251.27,0.00019726,2]
[315113882,1708842641704,-500.0,0.00019726,2]
[315113883,1708842641713,-500.0,0.00019726,2]
[315113884,1708842641722,-500.0,0.00019726,2]
[315113885,1708842641731,-500.0,0.00019726,2]
[315113886,1708842641741,-514.01,0.00019726,2]
[315113887,1708842641750,-629.179444,0.00019726,2]
[315113888,1708842641870,-629.179444,0.00019726,2]
[315113889,1708842641879,-629.179444,0.00019726,2]
[315113890,1708842641888,-716.08,0.00019726,2]
[315113891,1708842641897,-629.179444,0.00019726,2]
[315113892,1708842641906,-2652.32,0.00019726,2]
[315113893,1708842641915,-868.85,0.00019726,2]
[315113894,1708842641924,-500.0,0.00019726,2]
[315113895,1708842641933,-1557.26,0.00019726,2]
[315113896,1708842641942,-3756.32,0.00019726,2]
[315113897,1708842641951,-500.0,0.00019726,2]
[315113898,1708842641960,-5731.85,0.00019726,2]
[315113899,1708842641969,-500.0,0.00019726,2]
[315113900,1708842641978,-760.39,0.00019726,2]
[315113901,1708842641987,-300.0,0.00019727,2]
[315113902,1708842641996,-1000.0,0.00019732,2]
[315113903,1708842642006,-1000.0,0.00019757,2]
[315113904,1708842642015,-1000.0,0.00019763,2]
[315113905,1708842642025,-1000.0,0.00019766,2]
[315113906,1708842642034,-620.00211506,0.00019788,2]
[315113907,1708842642043,-1000.0,0.00019831,2]
[315113908,1708842642052,-1000.0,0.00019854,2]
[315113909,1708842642061,-629.179444,0.00019854,2]
[315113910,1708842642072,-629.179444,0.00019854,2]
[315113911,1708842642081,-300.0,0.00019865,2]
[315113912,1708842642089,-1000.0,0.00019866,2]
[315113913,1708842642098,-1000.0,0.0001987,2]
[315113914,1708842642107,-1000.0,0.00019875,2]
[315113915,1708842642116,-1000.0,0.00019881,2]
[315113916,1708842642126,-1000.0,0.00019882,2]
[315113917,1708842642135,-1000.0,0.00019891,2]
[315113918,1708842642145,-1000.0,0.0001991,2]
[315113919,1708842642157,-1000.0,0.00019911,2]
[315113920,1708842642166,-1000.0,0.00019915,2]
[315113921,1708842642175,-1000.0,0.00019917,2]
[315113922,1708842642184,-193.14192034,0.00019918,2]
[315113923,1708842642194,-1000.0,0.00019931,2]
[315113924,1708842642204,-569.691597,0.00019931,2]
[315113925,1708842642213,-306.407015,0.00019931,2]
[315113926,1708842642222,-569.691593,0.00019931,2]
[315113927,1708842642233,-306.40702,0.00019931,2]
[315113928,1708842642242,-29117.1252778,0.0002,2]
[315113929,1708842642251,-6000.0,0.0002,2]
[315113930,1708842642260,-6000.0,0.0002,2]
[315113931,1708842642269,-6000.0,0.0002,2]
[315113932,1708842642278,-6000.0,0.0002,2]
[315113933,1708842642287,-579.198058,0.0002,2]
[315113934,1708842642296,-154.82968734,0.0002,2]
[315113935,1708842642305,-1500.0,0.0002,2]
[315113936,1708842642314,-1500.0,0.0002,2]
[315113937,1708842642324,-1500.0,0.0002,2]
[315113938,1708842642333,-1500.0,0.0002,2]
[315113939,1708842642342,-1500.0,0.0002,2]
[315113940,1708842642351,-1500.0,0.0002,2]
[315113941,1708842642360,-1504.53,0.0002,2]
[315113942,1708842642369,-1500.0,0.0002,2]
[315113943,1708842642379,-1121.90417202,0.0002,2]
[315113944,1708842642388,-500.0,0.0002,2]
[315113945,1708842642397,-500.0,0.0002,2]
[315113946,1708842642406,-593.65,0.0002,2]
[315113947,1708842642415,-500.0,0.0002,2]
[315113948,1708842642424,-500.0,0.0002,2]
[315113949,1708842642433,-893.57,0.0002,2]
[315113950,1708842642443,-508.47,0.0002,2]
[315113951,1708842642452,-500.0,0.0002,2]
[315113952,1708842642461,-500.0,0.0002,2]
[315113953,1708842642471,-1671.45,0.0002,2]
[315113954,1708842642480,-851.02,0.0002,2]
[315113955,1708842642489,-1547.62,0.0002,2]
[315113956,1708842642498,-500.0,0.0002,2]
[315113957,1708842642507,-500.0,0.0002,2]
[315113958,1708842642516,-500.0,0.0002,2]
[315113959,1708842642526,-984.61,0.0002,2]
[315113960,1708842642534,-1575.29,0.0002,2]
[315113961,1708842642544,-951.86,0.0002,2]
[315113962,1708842642553,-1108.64,0.0002,2]
[315113963,1708842642562,-1321.94,0.0002,2]
[315113964,1708842642571,-1633.22,0.0002,2]
[315113965,1708842642580,-1206.07,0.0002,2]
[315113966,1708842642590,-500.0,0.0002,2]
[315113967,1708842642599,-251.87515718,0.0002,2]
[315113968,1708842642608,-8801.12,0.0002,2]
[315113969,1708842642618,-500.0,0.0002,2]
[315113970,1708842642627,-1720.21,0.0002,2]
[315113971,1708842642637,-1944.57,0.0002,2]
[315113972,1708842642646,-500.0,0.0002,2]
[315113973,1708842642654,-151.43073385,0.0002,2]
[315113974,1708842642663,-500.0,0.0002,2]
[315113975,1708842642672,-1184.28,0.0002,2]
[315113976,1708842642681,-500.0,0.0002,2]
[315113977,1708842642691,-10919.63,0.0002,2]
[315113978,1708842642700,-500.0,0.0002,2]
[315113979,1708842642708,-500.0,0.0002,2]
[315113980,1708842642718,-718.19,0.0002,2]
[315113981,1708842642727,-543.41,0.0002,2]
[315113982,1708842642735,-500.0,0.0002,2]
[315113983,1708842642744,-6251.27,0.0002,2]
[315113984,1708842642754,-500.0,0.0002,2]
[315113985,1708842642763,-506.57860548,0.0002,2]
[315113986,1708842642773,-500.0,0.0002,2]
[315113987,1708842642782,-500.0,0.0002,2]
[315113988,1708842642791,-514.01,0.0002,2]
[315113989,1708842642800,-716.08,0.0002,2]
[315113990,1708842642808,-2652.32,0.0002,2]
[315113991,1708842642817,-868.85,0.0002,2]